[Event "RUDAR XXII-IM 2024"]
[Site "Pozarevac"]
[Date "2024.02.12"]
[Round "5.5"]
[White "Spasic, Petar"]
[Black "Petrovic, Aleksa"]
[Result "1-0"]
[ECO "E15"]
[WhiteElo "2343"]
[BlackElo "2248"]
[Annotator "TA"]
[PlyCount "61"]
[EventDate "2024.02.12"]
[EventType "tourn"]
[EventCountry "SRB"]
[SourceTitle "playchess.com"]
[Source "ChessBase"]
[SourceQuality "1"]
[TimeControl "5400+30"]

{[%evp 9,61,6,48,30,41,20,47,40,52,47,50,46,73,60,43,60,63,59,84,64,76,75,69,59,100,67,54,24,66,51,65,62,99,106,113,118,110,79,79,92,91,91,101,87,148,125,163,137,133,142,447,446,741,729]} 1. d4 {[%emt 0:07:20]} Nf6 {[%emt 0:03:29]} 2. c4 {[%emt 0:00:05]} e6 {[%emt 0:00:54]} 3. Nf3 {[%emt 0:00:07]} b6 {[%emt 0:00:34]} 4. g3 {[%emt 0:00:07]} Ba6 {[%emt 0:00:27]} 5. Qc2 {[%emt 0:00:08]} Bb4+ {[%emt 0:03:55]} 6. Bd2 {[%emt 0:00:08]} Be7 {[%emt 0:00:01]} 7. Bg2 {[%emt 0:00:18]} d5 {[%emt 0:01:11]} 8. cxd5 {[%emt 0:07:49] White is slightly better.} exd5 {[%emt 0:00:55]} 9. Nc3 {[%emt 0:00:24]} O-O {[%emt 0:01:47]} 10. O-O {[%emt 0:01:36]} Re8 {[%emt 0:04:59]} 11. Ne5 {[%emt 0:10:12]} Bb7 {[%emt 0:10:11]} 12. Rfd1 {[%emt 0:01:10]} h6 {[%emt 0:03:40]} 13. Bf4 {[%emt 0:03:24] White has more active pieces. The black rooks are passive.} Bf8 {[%emt 0:02:35]} 14. Qb3 {[%emt 0:11:17][%cal Oe2e4]} (14. Rac1 {looks sharper.} Na6 15. a3 c5 16. dxc5 Nxc5 17. b4) 14... Re7 {[%emt 0:09:38]} 15. h4 {[%emt 0:01:28]} Na6 {[%emt 0:03:56]} 16. Rac1 {[%emt 0:12:51]} c5 {[%emt 0:15:01]} 17. Qa4 {[%emt 0:25:37][%cal Oe2e4]} Qe8 {[%emt 0:05:50]} 18. dxc5 {[%emt 0:01:07]} Qxa4 {[%emt 0:07:34]} 19. Nxa4 {[%emt 0:00:10]} bxc5 {[%emt 0:00:18][%cal Bb6c5,Bc5c4][%mdl 32]} 20. e3 {[%emt 0:03:23]} (20. Nxc5 Nxc5 21. Rxc5 Rxe5 22. Bxe5 Bxc5 $15) 20... Rae8 {[%emt 0:11:19]} 21. Nd3 {[%emt 0:01:11][%cal Be5d3,Bd3c5,Bc5a4,Ba4c3,Bc3b5,Bb5d6][%mdl 32]} (21. Nxc5 Nxc5 22. Rxc5 Rxe5 $17) 21... c4 {[%emt 0:07:16]} 22. Ndc5 {[%emt 0:01:31]} Bc6 {[%emt 0:00:24]} 23. b3 {[%emt 0:07:57]} Bxa4 {[%emt 0:02:45]} 24. Nxa4 {[%emt 0:00:08]} ({Reject} 24. Nxa6 cxb3 25. axb3 Bxb3 $15) 24... cxb3 {[%emt 0:00:24]} 25. axb3 {[%emt 0:00:16]} Rb7 {[%emt 0:00:37]} 26. Bf1 {[%emt 0:01:55] This pair of bishops is nice.} ({Resist} 26. Bxd5 Nxd5 27. Rxd5 Rxb3 $14) 26... Nb8 {[%emt 0:02:07]} (26... Nb4 $142) 27. Nc3 $16 {[%emt 0:00:34]} Ba3 {[%emt 0:01:26]} 28. Rc2 {[%emt 0:00:16]} Rc8 {[%emt 0:00:27]} 29. Rdd2 {[%emt 0:00:12]} Kf8 $2 {[%emt 0:00:46][%mdl 8192] [#]} (29... Rc6 $16) 30. Nb5 $18 {[%emt 0:00:11]} ({Not} 30. Nxd5 Rxc2 31. Rxc2 Nxd5 $18) 30... Bc5 {[%emt 0:00:29]} (30... Rxc2 $142 31. Rxc2 Nbd7 32. Nxa3 Rxb3 33. Rc8+ Ke7) 31. Nd6 {[%emt 0:00:28] Weighted Error Value: White=0.09 (flawless) /Black=0.31.  Loses game:     	---       	Black=1      Mistake:       	---       	Black=2      Inaccurate:     	White=2     	Black=6      OK:         	White=9     	Black=6      Best:        	White=2     	Black=1} 1-0

[Event "RUDAR XXII-IM 2024"]
[Site "Pozarevac"]
[Date "2024.02.12"]
[Round "6.1"]
[White "Ilincic, Zlatko"]
[Black "Petrovic, Aleksa"]
[Result "0-1"]
[ECO "E00"]
[WhiteElo "2291"]
[BlackElo "2248"]
[Annotator "RC"]
[PlyCount "64"]
[EventDate "2024.02.12"]
[EventType "tourn"]
[EventCountry "SRB"]
[SourceTitle "playchess.com"]
[Source "ChessBase"]
[SourceQuality "1"]
[TimeControl "5400+30"]

1. d4 {[%emt 0:01:03]} Nf6 {[%emt 0:01:03]} 2. c4 {[%emt 0:00:07]} e6 {[%emt 0:00:14]} 3. a3 {[%emt 0:00:11]} Be7 {[%emt 0:04:57]} 4. Nf3 {[%emt 0:01:38]} O-O {[%emt 0:00:36]} 5. e3 {[%emt 0:00:21]} d5 {[%emt 0:02:12]} 6. b3 {[%emt 0:01:04]} b6 {[%emt 0:02:28]} 7. Bd3 {[%emt 0:00:17]} Bb7 {[%emt 0:00:32]} 8. O-O {[%emt 0:00:10]} c5 {[%emt 0:05:17]} 9. Bb2 {[%emt 0:00:15]} cxd4 {[%emt 0:00:25]} 10. Nxd4 {[%emt 0:00:45]} dxc4 {[%emt 0:01:42]} 11. Bxc4 {[%emt 0:00:16]} a6 {[%emt 0:00:20]} 12. a4 {[%emt 0:00:14]} Nc6 {[%emt 0:01:27]} 13. Nxc6 {[%emt 0:00:24]} Bxc6 {[%emt 0:00:07]} 14. Qe2 {[%emt 0:00:20]} b5 {[%emt 0:01:44]} 15. Rd1 {[%emt 0:03:46]} Qb8 {[%emt 0:02:22]} 16. Bd3 {[%emt 0:00:50]} bxa4 {[%emt 0:02:47]} 17. bxa4 {[%emt 0:00:08]} Qb7 {[%emt 0:09:34]} 18. f3 {[%emt 0:00:22]} Nd5 {[%emt 0:02:15]} 19. Nc3 {[%emt 0:02:16]} Nb4 {[%emt 0:03:44]} 20. Be4 {[%emt 0:00:26]} Rac8 {[%emt 0:03:34]} 21. Rd2 {[%emt 0:00:49]} Qa7 {[%emt 0:03:07]} 22. Bxc6 {[%emt 0:01:03]} Rxc6 {[%emt 0:00:36]} 23. Ne4 {[%emt 0:00:26]} f5 {[%emt 0:01:15]} 24. Bd4 {[%emt 0:04:24]} Qc7 {[%emt 0:01:15]} 25. Nf2 {[%emt 0:00:22]} Nc2 {[%emt 0:01:30]} 26. Ra2 {[%emt 0:01:13]} Rc8 {[%emt 0:06:43]} 27. Nd3 {[%emt 0:01:05]} Nxd4 {[%emt 0:02:07]} 28. exd4 {[%emt 0:00:08]} Qb6 {[%emt 0:00:57]} 29. Ne5 {[%emt 0:05:18]} Rc1+ {[%emt 0:01:33]} 30. Kf2 {[%emt 0:00:07]} Bb4 {[%emt 0:02:18]} 31. Rab2 {[%emt 0:03:59]} Qd6 {[%emt 0:01:05]} 32. Rd3 {[%emt 0:01:08]} Bc3 {[%emt 0:00:54]} 0-1

[Event "RUDAR XXII-IM 2024"]
[Site "Pozarevac"]
[Date "2024.02.12"]
[Round "6.2"]
[White "Popchev, Milko"]
[Black "Spasic, Petar"]
[Result "0-1"]
[ECO "B50"]
[WhiteElo "2193"]
[BlackElo "2343"]
[Annotator "TA"]
[PlyCount "151"]
[EventDate "2024.02.12"]
[EventType "tourn"]
[EventCountry "SRB"]
[SourceTitle "playchess.com"]
[Source "ChessBase"]
[SourceQuality "1"]
[TimeControl "5400+30"]

{[%evp 28,151,0,0,0,0,0,-12,6,0,-15,-38,-11,-49,-35,-92,-81,-68,0,-13,267,-31,-52,-139,-114,-233,-245,-222,-178,-167,-166,-159,-153,-152,-115,-204,-171,-190,-149,-310,-217,-214,-212,-217,-158,-170,-158,-171,-136,-186,-201,-201,-177,-191,-186,-246,-238,-258,-254,-258,-259,-286,-286,-379,-305,-305,-305,-305,-305,-305,-305,-350,-305,-349,-350,-350,-350,-350,-350,-350,-350,-350,-350,-350,-350,-490,-484,-485,-485,-477,-477,-463,-463,-463,-463,-554,-549,-554,-440,-540,-554,-554,-554,-540,-512,-533,-533,-533,-531,-478,-461,-538,-485,-485,-485,-485,-485,-1364,-1383,-1216,-1208,-1134,-974,-11695,-6285,-4618]} 1. e4 {[%emt 0:19:18]} c5 {[%emt 0:00:06]} 2. Nf3 {[%emt 0:00:43]} d6 {[%emt 0:00:09]} 3. Be2 {[%emt 0:00:12]} Nf6 {[%emt 0:00:13]} 4. d3 {[%emt 0:00:03]} g6 {[%emt 0:00:14]} 5. O-O {[%emt 0:00:10]} Bg7 {[%emt 0:00:15]} 6. Re1 {[%emt 0:00:20]} O-O {[%emt 0:00:13]} 7. Bf1 {[%emt 0:00:07]} Nc6 {[%emt 0:00:10]} 8. c3 {[%emt 0:00:14]} e5 {[%emt 0:00:20]} 9. a3 {[%emt 0:00:18]} h6 {[%emt 0:01:06]} 10. b4 {[%emt 0:00:12]} a6 {[%emt 0:00:17]} 11. Bb2 {[%emt 0:00:56]} Qe7 {[%emt 0:01:58]} 12. Nbd2 {[%emt 0:02:42]} b5 {[%emt 0:00:59]} 13. a4 {[%emt 0:01:55]} Rb8 {[%emt 0:00:50]} 14. axb5 {[%emt 0:00:48]} axb5 {[%emt 0:00:17]} 15. bxc5 {[%emt 0:04:03]} dxc5 {[%emt 0:00:08]} 16. d4 {[%emt 0:00:08]} exd4 {[%emt 0:03:16]} 17. cxd4 {[%emt 0:00:07]} cxd4 {[%emt 0:02:44]} 18. Qc1 {[%emt 0:02:47]} Bd7 {[%emt 0:06:59]} 19. Nb3 {[%emt 0:05:34]} Rfc8 {[%emt 0:09:44]} 20. Qb1 {[%emt 0:02:22]} Ng4 $1 {[%emt 0:00:43]} 21. h3 {[%emt 0:03:35]} (21. Be2 $15) 21... Nge5 {[%emt 0:00:33]} 22. Nfxd4 {[%emt 0:04:46]} Nb4 {[%emt 0:01:18]} ({Better is} 22... Nxd4 $15 23. Bxd4 Be6) 23. Ra7 {[%emt 0:02:43]} Nc4 $2 {[%emt 0:17:06][%mdl 8192]} (23... Nec6 $11 {and Black stays safe.} 24. Nxc6 Nxc6) 24. Bc1 $2 {[%emt 0:04:18]} (24. Nf5 $1 $18 {[%cal Rf5e7]} gxf5 25. Bxg7) 24... Qd6 $15 {[%emt 0:16:58]} 25. Nf3 {[%emt 0:00:35]} (25. Bf4 $15 Qxf4 26. Rxd7) 25... Be6 $1 $17 {[%emt 0:02:47]} 26. Nbd2 {[%emt 0:05:06]} (26. Be2 $17) 26... Qc5 $19 {[%emt 0:03:00]} 27. Nxc4 {[%emt 0:02:26]} Qxa7 {[%emt 0:01:35]} 28. Nd6 {[%emt 0:02:39]} Rc2 {[%emt 0:07:28]} 29. Be3 {[%emt 0:01:23]} Qa4 $1 {[%emt 0:06:26]} 30. e5 {[%emt 0:03:02]} Ba2 {[%emt 0:01:02]} 31. Qa1 {[%emt 0:00:52]} (31. Qd1 $17) 31... Bd5 {[%emt 0:07:29]} 32. Qd1 {[%emt 0:01:59]} Ra2 {[%emt 0:00:58]} 33. Bc5 $2 {[%emt 0:02:25]} (33. Bxb5 $17 {was worth a try.} Qxd1 (33... Rxb5 34. Qxa4 Rxa4 35. Nxb5 $11) 34. Rxd1) 33... Qxd1 {[%emt 0:01:59]} 34. Rxd1 {[%emt 0:00:01]} Bxf3 $1 {[%emt 0:00:09]} 35. gxf3 {[%emt 0:00:04]} Na6 {[%emt 0:00:29]} 36. Be3 {[%emt 0:00:53]} Bxe5 {[%emt 0:02:27]} 37. Nxb5 {[%emt 0:00:21]} Ra5 {[%emt 0:00:58]} 38. Rd5 {[%emt 0:03:33]} (38. Nd6 $17) 38... Bg7 $19 {[%emt 0:01:44]} 39. Bd2 {[%emt 0:04:06]} Ra1 {[%emt 0:00:09]} 40. Kg2 {[%emt 0:00:24]} Rc8 {[%emt 0:01:13]} 41. Nd6 {[%emt 0:01:17]} (41. f4 {is a better defense.}) 41... Rd8 $19 {[%emt 0:00:40]} 42. Ba5 {[%emt 0:02:33]} Rd7 $1 {[%emt 0:02:17]} (42... Ra8 43. Bc4 $17) 43. Bxa6 {[%emt 0:00:33] [#]} Bf8 $1 {[%emt 0:00:38]} 44. Bc4 {[%emt 0:05:57]} Rxd6 {[%emt 0:00:34]} ({Not} 44... Bxd6 45. Bb6 $15) 45. Rb5 {[%emt 0:00:01]} Rc6 {[%emt 0:00:31]} 46. Bd5 {[%emt 0:03:53]} Rc5 {[%emt 0:00:13]} 47. Rxc5 {[%emt 0:00:09]} Bxc5 {[%emt 0:00:07]} 48. Bc3 {[%emt 0:00:19]} Rd1 {[%emt 0:00:41]} 49. Be4 {[%emt 0:00:30]} f5 {[%emt 0:00:55]} 50. Bc2 {[%emt 0:00:14]} Rc1 {[%emt 0:00:16]} 51. Bb3+ {[%emt 0:00:01] [#]} Kh7 $1 {[%emt 0:00:26]} 52. Be5 {[%emt 0:01:04]} Re1 {[%emt 0:01:33]} 53. Bg3 {[%emt 0:00:51]} g5 {[%emt 0:00:17]} 54. f4 {[%emt 0:00:24]} Re2 {[%emt 0:00:31]} 55. Bc4 {[%emt 0:00:32]} Rd2 {[%emt 0:00:21]} 56. Kf3 {[%emt 0:00:46]} Kg6 {[%emt 0:00:53]} 57. Bb5 {[%emt 0:00:23]} gxf4 {[%emt 0:00:39]} 58. Be8+ {[%emt 0:00:35]} Kf6 {[%emt 0:00:08]} 59. Bxf4 {[%emt 0:01:09]} Rxf2+ {[%emt 0:00:09]} 60. Kg3 {[%emt 0:00:01]} Re2 {[%emt 0:01:27]} 61. Bh5 {[%emt 0:00:19]} Re7 {[%emt 0:00:10]} 62. Kf3 {[%emt 0:00:21]} Ra7 {[%emt 0:00:15]} 63. h4 {[%emt 0:00:33]} Ra3+ {[%emt 0:00:27]} 64. Kg2 {[%emt 0:00:39]} Be3 {[%emt 0:00:30]} 65. Bc7 {[%emt 0:00:11]} Rd3 {[%emt 0:00:47]} 66. Be2 {[%emt 0:00:55]} Rd4 {[%emt 0:00:26]} 67. Kf3 {[%emt 0:00:23]} Bd2 {[%emt 0:00:12]} 68. Bg3 {[%emt 0:00:42]} Ra4 {[%emt 0:00:34]} 69. Bd3 {[%emt 0:01:11]} Bc3 {[%emt 0:00:46]} 70. Bf4 {[%emt 0:00:17]} Be5 {[%emt 0:01:03]} 71. Bxh6 {[%emt 0:00:53]} Rxh4 {[%emt 0:00:06]} 72. Bd2 {[%emt 0:00:16]} (72. Be3 $142 Rh3+ 73. Ke2) 72... Rh3+ $19 {[%emt 0:00:11]} 73. Ke2 {[%emt 0:00:02]} Rh2+ {[%emt 0:00:10]} 74. Ke1 {[%emt 0:00:45]} f4 {[%emt 0:00:11]} 75. Be4 {[%emt 0:00:23]} Kg5 {[%emt 0:00:12]} 76. Bc2 {[%emt 0:11:18]} 0-1

[Event "RUDAR XXII-IM 2024"]
[Site "Pozarevac"]
[Date "2024.02.12"]
[Round "6.3"]
[White "Karamsetty, Jeevan"]
[Black "Bryakin, Mikhail"]
[Result "0-1"]
[ECO "B23"]
[WhiteElo "2211"]
[BlackElo "2494"]
[Annotator "RC"]
[PlyCount "168"]
[EventDate "2024.02.12"]
[EventType "tourn"]
[EventCountry "SRB"]
[SourceTitle "playchess.com"]
[Source "ChessBase"]
[SourceQuality "1"]
[TimeControl "5400+30"]

1. e4 {[%emt 0:03:10]} c5 {[%emt 0:04:05]} 2. Nc3 {[%emt 0:00:06]} Nc6 {[%emt 0:00:44]} 3. Bb5 {[%emt 0:00:06]} Nd4 {[%emt 0:00:18]} 4. Bc4 {[%emt 0:00:06]} e6 {[%emt 0:00:49]} 5. Nge2 {[%emt 0:00:09]} Nf6 {[%emt 0:00:32]} 6. O-O {[%emt 0:00:08]} a6 {[%emt 0:00:41]} 7. a4 {[%emt 0:00:07]} Qc7 {[%emt 0:00:57]} 8. d3 {[%emt 0:00:43]} b6 {[%emt 0:03:38]} 9. Nxd4 {[%emt 0:02:53]} cxd4 {[%emt 0:00:14]} 10. Ne2 {[%emt 0:00:09]} Bd6 {[%emt 0:00:26]} 11. h3 {[%emt 0:05:02]} Nxe4 {[%emt 0:07:02]} 12. Bd5 {[%emt 0:18:40]} exd5 {[%emt 0:03:14]} 13. dxe4 {[%emt 0:00:17]} dxe4 {[%emt 0:00:40]} 14. Qxd4 {[%emt 0:13:02]} Bh2+ {[%emt 0:06:29]} 15. Kh1 {[%emt 0:00:08]} Be5 {[%emt 0:00:13]} 16. Qxe4 {[%emt 0:04:11]} Bb7 {[%emt 0:00:16]} 17. Qd3 {[%emt 0:01:59]} O-O {[%emt 0:01:19]} 18. Be3 {[%emt 0:03:18]} Qc6 {[%emt 0:13:15]} 19. f3 {[%emt 0:01:01]} Rfe8 {[%emt 0:00:57]} 20. c3 {[%emt 0:07:22]} Bc7 {[%emt 0:04:29]} 21. Bg1 {[%emt 0:01:42]} Qg6 {[%emt 0:08:00]} 22. Qxg6 {[%emt 0:01:01]} hxg6 {[%emt 0:00:32]} 23. Rfe1 {[%emt 0:02:32]} Bc6 {[%emt 0:03:37]} 24. b3 {[%emt 0:01:46]} f6 {[%emt 0:06:40]} 25. Nd4 {[%emt 0:05:51]} Bd5 {[%emt 0:02:24]} 26. c4 {[%emt 0:02:21]} Bf7 {[%emt 0:01:27]} 27. Bh2 {[%emt 0:00:37]} Bxh2 {[%emt 0:01:02]} 28. Kxh2 {[%emt 0:00:11]} d5 {[%emt 0:00:23]} 29. cxd5 {[%emt 0:01:09]} Bxd5 {[%emt 0:00:21]} 30. Rxe8+ {[%emt 0:05:13]} Rxe8 {[%emt 0:01:25]} 31. Rc1 {[%emt 0:05:23]} Re3 {[%emt 0:00:43]} 32. b4 {[%emt 0:00:45]} Rd3 {[%emt 0:02:35]} 33. Nc6 {[%emt 0:00:22]} Kh7 {[%emt 0:02:09]} 34. Nb8 {[%emt 0:05:02]} Ra3 {[%emt 0:00:56]} 35. Nxa6 {[%emt 0:03:42]} Rxa4 {[%emt 0:00:21]} 36. Nc7 {[%emt 0:00:45]} Bb7 {[%emt 0:02:20]} 37. b5 {[%emt 0:00:10]} Ra2 {[%emt 0:04:19]} 38. Kg3 {[%emt 0:01:00]} Re2 {[%emt 0:00:23]} 39. Rd1 {[%emt 0:00:51]} g5 {[%emt 0:16:50]} 40. Rd7 {[%emt 0:04:22]} Kg6 {[%emt 0:01:06]} 41. Na6 {[%emt 0:01:17]} Bc8 {[%emt 0:00:29]} 42. Rd6 {[%emt 0:00:49]} Be6 {[%emt 0:00:24]} 43. Rxb6 {[%emt 0:00:20]} Bc4 {[%emt 0:00:03]} 44. Nc5 {[%emt 0:00:44]} Rb2 {[%emt 0:00:44]} 45. Ne4 {[%emt 0:01:16]} Bf1 {[%emt 0:00:08]} 46. Nf2 {[%emt 0:00:26]} Kh7 {[%emt 0:01:55]} 47. f4 {[%emt 0:00:57]} gxf4+ {[%emt 0:00:13]} 48. Kf3 {[%emt 0:00:06]} Rb3+ {[%emt 0:01:35]} 49. Kxf4 {[%emt 0:00:23]} Bxg2 {[%emt 0:00:04]} 50. Kg4 {[%emt 0:00:49]} Rf3 {[%emt 0:01:00]} 51. Nd1 {[%emt 0:00:46]} g6 {[%emt 0:00:46]} 52. Rb8 {[%emt 0:00:29]} Rxh3 {[%emt 0:00:37]} 53. b6 {[%emt 0:00:29]} Rb3 {[%emt 0:00:22]} 54. Kf4 {[%emt 0:00:12]} Rf3+ {[%emt 0:00:08]} 55. Kg4 {[%emt 0:00:13]} Rb3 {[%emt 0:00:22]} 56. Kf4 {[%emt 0:00:11]} Kh6 {[%emt 0:00:20]} 57. Ne3 {[%emt 0:01:07]} g5+ {[%emt 0:00:12]} 58. Kg3 {[%emt 0:00:14]} Bb7 {[%emt 0:01:37]} 59. Rxb7 {[%emt 0:00:43]} Rxe3+ {[%emt 0:00:07]} 60. Kf2 {[%emt 0:00:23]} Rb3 {[%emt 0:00:43]} 61. Rb8 {[%emt 0:00:39]} Kg7 {[%emt 0:00:28]} 62. b7 {[%emt 0:00:43]} f5 {[%emt 0:00:07]} 63. Kg2 {[%emt 0:00:41]} f4 {[%emt 0:00:15]} 64. Kf2 {[%emt 0:00:21]} g4 {[%emt 0:00:11]} 65. Kf1 {[%emt 0:00:42]} Rb2 {[%emt 0:00:19]} 66. Kg1 {[%emt 0:00:19]} Rb1+ {[%emt 0:00:39]} 67. Kg2 {[%emt 0:00:18]} Rb2+ {[%emt 0:01:37]} 68. Kg1 {[%emt 0:00:04]} g3 {[%emt 0:00:09]} 69. Rc8 {[%emt 0:00:51]} Rxb7 {[%emt 0:00:03]} 70. Rc4 {[%emt 0:00:23]} Rb1+ {[%emt 0:01:15]} 71. Kg2 {[%emt 0:00:12]} Rb2+ {[%emt 0:00:04]} 72. Kg1 {[%emt 0:00:34]} Rf2 {[%emt 0:00:10]} 73. Rc6 {[%emt 0:00:18]} f3 {[%emt 0:00:42]} 74. Rc4 {[%emt 0:00:15]} Rg2+ {[%emt 0:00:31]} 75. Kf1 {[%emt 0:00:24]} Kg6 {[%emt 0:00:24]} 76. Rc8 {[%emt 0:01:18]} Kf5 {[%emt 0:00:34]} 77. Rf8+ {[%emt 0:00:08]} Ke4 {[%emt 0:00:02]} 78. Re8+ {[%emt 0:00:24]} Kd3 {[%emt 0:00:03]} 79. Rd8+ {[%emt 0:00:51]} Kc2 {[%emt 0:00:07]} 80. Ra8 {[%emt 0:00:32]} Rh2 {[%emt 0:00:55]} 81. Rc8+ {[%emt 0:00:47]} Kd3 {[%emt 0:00:20]} 82. Rd8+ {[%emt 0:00:25]} Ke4 {[%emt 0:00:22]} 83. Re8+ {[%emt 0:00:21]} Kd5 {[%emt 0:00:06]} 84. Ke1 {[%emt 0:01:01]} Rh1+ {[%emt 0:00:06]} 0-1

[Event "RUDAR XXII-IM 2024"]
[Site "Pozarevac"]
[Date "2024.02.12"]
[Round "6.4"]
[White "Sri Sai Baswanth P"]
[Black "Ninov, Nikolai"]
[Result "1-0"]
[ECO "A20"]
[WhiteElo "2096"]
[BlackElo "2413"]
[Annotator "RC"]
[PlyCount "50"]
[EventDate "2024.02.12"]
[EventType "tourn"]
[EventCountry "SRB"]
[SourceTitle "playchess.com"]
[Source "ChessBase"]
[SourceQuality "1"]
[TimeControl "5400+30"]

1. c4 {[%emt 0:01:42]} e5 {[%emt 0:00:33]} 2. g3 {[%emt 0:00:08]} h5 {[%emt 0:00:34]} 3. Nf3 {[%emt 0:00:29]} e4 {[%emt 0:00:41]} 4. Nh4 {[%emt 0:00:14]} Be7 {[%emt 0:00:34]} 5. Nf5 {[%emt 0:05:14]} d6 {[%emt 0:03:36]} 6. Nxe7 {[%emt 0:02:00]} Qxe7 {[%emt 0:00:13]} 7. Nc3 {[%emt 0:00:23]} Nf6 {[%emt 0:02:49]} 8. d4 {[%emt 0:02:29]} exd3 {[%emt 0:13:36]} 9. Qxd3 {[%emt 0:00:57]} Nbd7 {[%emt 0:12:17]} 10. Bg2 {[%emt 0:03:13]} h4 {[%emt 0:02:38]} 11. Bg5 {[%emt 0:20:33]} h3 {[%emt 0:27:32]} 12. Bf3 {[%emt 0:01:24]} Ne5 {[%emt 0:00:23]} 13. Qe3 {[%emt 0:00:34]} Be6 {[%emt 0:14:08]} 14. Bxb7 {[%emt 0:40:08]} Rb8 {[%emt 0:00:32]} 15. Bd5 {[%emt 0:01:54]} Rxb2 {[%emt 0:07:56]} 16. O-O {[%emt 0:00:08]} c6 {[%emt 0:01:15]} 17. Bxf6 {[%emt 0:12:04]} gxf6 {[%emt 0:00:45]} 18. f4 {[%emt 0:00:26]} cxd5 {[%emt 0:02:12]} 19. fxe5 {[%emt 0:00:01]} d4 {[%emt 0:01:47]} 20. Qxd4 {[%emt 0:02:25]} dxe5 {[%emt 0:01:57]} 21. Qe3 {[%emt 0:00:01]} Bxc4 {[%emt 0:00:34]} 22. Rf2 {[%emt 0:01:06]} Qb7 {[%emt 0:01:21]} 23. Ne4 {[%emt 0:00:20]} Qb6 {[%emt 0:00:48]} 24. Nxf6+ {[%emt 0:00:15]} Kf8 {[%emt 0:00:18]} 25. Nd7+ {[%emt 0:00:05]} Ke8 {[%emt 0:04:01]} 1-0

[Event "RUDAR XXII-IM 2024"]
[Site "Pozarevac"]
[Date "2024.02.12"]
[Round "6.5"]
[White "Mesic, Ismet"]
[Black "Potluri Saye Srreezza"]
[Result "1-0"]
[ECO "E51"]
[WhiteElo "2232"]
[BlackElo "1983"]
[Annotator "TA"]
[PlyCount "73"]
[EventDate "2024.02.12"]
[EventType "tourn"]
[EventCountry "SRB"]
[SourceTitle "playchess.com"]
[Source "ChessBase"]
[SourceQuality "1"]
[TimeControl "5400+30"]

{[%evp 13,73,9,7,5,7,0,-11,-25,25,-26,0,2,0,0,59,15,21,0,54,66,77,79,68,65,83,71,66,20,88,87,79,62,113,140,134,135,224,212,222,198,222,216,315,307,383,380,456,447,456,458,457,442,517,481,501,464,538,506,660,597,597,597]} 1. d4 {[%emt 0:00:02]} Nf6 {[%emt 0:03:33]} 2. c4 {[%emt 0:00:32]} e6 {[%emt 0:00:14]} 3. Nc3 {[%emt 0:00:06]} Bb4 {[%emt 0:00:05]} 4. e3 {[%emt 0:00:04]} O-O {[%emt 0:00:06]} 5. Bd2 {[%emt 0:00:12]} d5 {[%emt 0:01:42]} 6. Nf3 {[%emt 0:00:07]} b6 {[%emt 0:02:00]} 7. cxd5 {[%emt 0:00:06]} exd5 {[%emt 0:00:28]} 8. Bd3 {[%emt 0:00:06]} Bd6 {[%emt 0:01:03]} 9. O-O {[%emt 0:03:49]} Re8 {[%emt 0:00:52]} 10. Rc1 {[%emt 0:01:33] The position is equal.} a6 {[%emt 0:13:20] Prevents Nb5} (10... c5 $142) 11. Ne2 {[%emt 0:04:12]} (11. Ne5 $142) 11... c5 {[%emt 0:03:33]} 12. dxc5 {[%emt 0:08:19]} bxc5 {[%emt 0:01:01]} 13. Bc3 {[%emt 0:05:04]} Bg4 {[%emt 0:16:37]} (13... Bb7 $11) 14. Ng3 {[%emt 0:08:29]} (14. Bxf6 $5 Qxf6 15. Nc3 $11) 14... Nc6 {[%emt 0:02:57][%cal Od5d4]} 15. Nf5 {[%emt 0:10:07]} d4 {[%emt 0:05:20] [#]} 16. Bxd4 $1 $14 {[%emt 0:10:15]} Bxf3 {[%emt 0:03:23]} (16... Nxd4 17. exd4) 17. Qxf3 {[%emt 0:09:06]} Nxd4 {[%emt 0:00:53]} 18. exd4 {[%emt 0:00:13]} cxd4 {[%emt 0:00:12]} 19. Rc6 {[%emt 0:05:11]} Be5 {[%emt 0:09:58]} 20. b3 {[%emt 0:07:46] White has more active pieces.} (20. Qh3 $14) 20... Ra7 {[%emt 0:17:42]} (20... g6 $11 {keeps the balance.}) 21. Rxa6 $40 {[%emt 0:06:00][%mdl 128] White wants a kill. White leaves nothing to chance now.} Rxa6 {[%emt 0:01:20]} 22. Bxa6 {[%emt 0:00:28]} Qa8 {[%emt 0:00:49]} (22... Qc7 $14) 23. Bb5 {[%emt 0:02:53]} Qxf3 {[%emt 0:01:17]} 24. gxf3 {[%emt 0:00:02]} Ra8 {[%emt 0:00:51]} (24... Rb8 $16 {keeps fighting.} 25. Bc4 Kh8) 25. a4 $18 {[%emt 0:01:33]} g6 {[%emt 0:03:18]} 26. Ne7+ {[%emt 0:00:08]} Kg7 {[%emt 0:00:39]} 27. Nc6 {[%emt 0:00:14]} Bd6 {[%emt 0:00:08]} (27... Nd7 $142 28. b4 Kf6) 28. Rd1 {[%emt 0:01:17]} Bc5 {[%emt 0:00:13]} 29. b4 {[%emt 0:00:09]} ({Resist} 29. Nxd4 Ng8 (29... Rd8 $2 30. Nf5+ gxf5 31. Rxd8 $18) 30. Nc2 Kf6 $18) 29... Bd6 {[%emt 0:00:53]} 30. Rxd4 {[%emt 0:00:07] White is clearly winning.} Bc7 {[%emt 0:00:07]} 31. a5 {[%emt 0:00:49][%cal Ba4a5,Ba5a6,Ba6a7][%mdl 32]} Re8 {[%emt 0:00:36]} 32. Rd1 {[%emt 0:00:07] Prevents Re1+} Nh5 {[%emt 0:00:18]} 33. a6 {[%emt 0:00:24] [#] Strongly threatening Kf1.} Bb6 {[%emt 0:00:06]} 34. a7 {[%emt 0:00:27]} Ra8 {[%emt 0:00:28]} 35. Ra1 {[%emt 0:00:07]} Nf4 {[%emt 0:00:16]} 36. Ra6 {[%emt 0:00:39]} Nd5 {[%emt 0:00:23]} 37. Bc4 {[%emt 0:01:32] Weighted Error Value: White=0.17 (very precise) /Black=0.42.  Mistake:       	White=2     	Black=7      Inaccurate:     	White=1     	Black=2      OK:         	White=12    	Black=6      Best:        	---       	Black=1      Brilliant:      	White=1     	---} 1-0